fUST/lending_fUST_20240902
["ID","MTS","AMOUNT","RATE_DAILY","PERIOD"]
[336921803,1725243038665,-300.0,0.00024646,2]
[336921804,1725243038674,-17461.5483832,0.00024647,3]
[336921805,1725243038684,-288.93539271,0.00024657,11]
[336921806,1725243038693,-215.69530873,0.00024657,2]
[336921807,1725243038703,-500.0,0.00024657,2]
[336921808,1725243038713,-500.0,0.00024657,2]
[336921809,1725243038722,-500.0,0.00024657,2]
[336921810,1725243038732,-500.0,0.00024657,2]
[336921811,1725243038741,-502.63463497,0.00024657,2]
[336921812,1725243038752,-500.0,0.00024657,2]
[336921813,1725243038762,-500.60154601,0.00024657,2]
[336921814,1725243038772,-500.0,0.00024657,2]
[336921815,1725243038781,-500.0,0.00024657,2]
[336921816,1725243038791,-500.0,0.00024657,2]
[336921817,1725243038801,-500.0,0.00024657,2]
[336921818,1725243038811,-500.0,0.00024657,2]
[336921819,1725243038820,-502.96992128,0.00024657,2]
[336921820,1725243038830,-500.0,0.00024657,2]
[336921821,1725243038839,-512.69040343,0.00024657,2]
[336921822,1725243038848,-500.0,0.00024657,2]
[336921823,1725243038861,-500.0,0.00024657,2]
[336921824,1725243038871,-500.0,0.00024657,2]
[336921825,1725243038880,-674.03,0.00024657,2]
[336921826,1725243038890,-500.0,0.00024657,2]
[336921827,1725243038900,-500.0,0.00024657,2]
[336921828,1725243038909,-500.0,0.00024657,2]
[336921829,1725243038919,-500.0,0.00024657,2]
[336921830,1725243038928,-500.0,0.00024657,2]
[336921831,1725243038938,-500.0,0.00024657,2]
[336921832,1725243038948,-500.0,0.00024657,2]
[336921833,1725243038957,-500.0,0.00024657,2]
[336921834,1725243038967,-500.0,0.00024657,2]
[336921835,1725243038976,-500.0,0.00024657,2]
[336921836,1725243038986,-502.22836156,0.00024657,2]
[336921837,1725243038995,-500.0,0.00024657,2]
[336921838,1725243039004,-502.94461312,0.00024657,2]
[336921839,1725243039014,-500.0,0.00024657,2]
[336921840,1725243039023,-500.0,0.00024657,2]
[336921841,1725243039034,-500.0,0.00024657,2]
[336921842,1725243039043,-501.55765007,0.00024657,2]
[336921843,1725243039053,-500.0,0.00024657,2]
[336921844,1725243039064,-500.0,0.00024657,2]
[336921845,1725243039074,-500.0,0.00024657,2]
[336921846,1725243039085,-500.0,0.00024657,2]
[336921847,1725243039095,-500.0,0.00024657,2]
[336921848,1725243039106,-500.0,0.00024657,2]
[336921849,1725243039116,-500.0,0.00024657,2]
[336921850,1725243039132,-500.0,0.00024657,2]
[336921851,1725243039144,-500.0,0.00024657,2]
[336921852,1725243039153,-500.0,0.00024657,2]
[336921853,1725243039165,-500.0,0.00024657,2]
[336921854,1725243039177,-500.0,0.00024657,2]
[336921855,1725243039187,-500.0,0.00024657,2]
[336921856,1725243039199,-500.0,0.00024657,2]
[336921857,1725243039208,-505.64684433,0.00024657,2]
[336921858,1725243039218,-503.8545373,0.00024657,2]
[336921859,1725243039227,-500.0,0.00024657,2]
[336921860,1725243039237,-500.0,0.00024657,2]
[336921861,1725243039246,-500.0,0.00024657,2]
[336921862,1725243039256,-500.0,0.00024657,2]
[336921863,1725243039266,-259.10014053,0.00024657,2]
[336921864,1725243039277,-500.0,0.00024657,2]
[336921865,1725243039286,-1146.2,0.00024657,2]
[336921866,1725243039296,-500.0,0.00024657,2]
[336921867,1725243039306,-500.0,0.00024657,2]
[336921868,1725243039315,-500.0,0.00024657,2]
[336921869,1725243039325,-502.11117256,0.00024657,2]
[336921870,1725243039335,-500.0,0.00024657,2]
[336921871,1725243039344,-500.0,0.00024657,2]
[336921872,1725243039356,-502.6324954,0.00024657,2]
[336921873,1725243039366,-500.0,0.00024657,2]
[336921874,1725243039375,-500.0,0.00024657,2]
[336921875,1725243039385,-500.0,0.00024657,2]
[336921876,1725243039395,-500.0,0.00024657,2]
[336921877,1725243039404,-500.0,0.00024657,2]
[336921878,1725243039414,-500.0,0.00024657,2]
[336921879,1725243039424,-500.0,0.00024657,2]
[336921880,1725243039433,-500.0,0.00024657,2]
[336921881,1725243039442,-500.0,0.00024657,2]
[336921882,1725243039451,-500.0,0.00024657,2]
[336921883,1725243039461,-500.0,0.00024657,2]
[336921884,1725243039471,-500.0,0.00024657,2]
[336921885,1725243039481,-500.0,0.00024657,2]
[336921886,1725243039490,-748.64,0.00024657,2]
[336921887,1725243039500,-500.0,0.00024657,2]
[336921888,1725243039509,-500.0,0.00024657,2]
[336921889,1725243039519,-501.12059906,0.00024657,2]
[336921890,1725243039528,-673.34,0.00024657,2]
[336921891,1725243039538,-500.0,0.00024657,2]
[336921892,1725243039547,-500.0,0.00024657,2]
[336921893,1725243039557,-500.0,0.00024657,2]
[336921894,1725243039567,-500.0,0.00024657,2]
[336921895,1725243039576,-500.0,0.00024657,2]
[336921896,1725243039586,-500.0,0.00024657,2]
[336921897,1725243039595,-500.0,0.00024657,2]
[336921898,1725243039607,-500.0,0.00024657,2]
[336921899,1725243039616,-500.0,0.00024657,2]
[336921900,1725243039626,-500.0,0.00024657,2]
[336921901,1725243039635,-500.0,0.00024657,2]
[336921902,1725243039645,-500.0,0.00024657,2]
[336921903,1725243039655,-500.0,0.00024657,2]
[336921904,1725243039664,-500.0,0.00024657,2]
[336921905,1725243039674,-500.0,0.00024657,2]
[336921906,1725243039683,-504.32544795,0.00024657,2]
[336921907,1725243039693,-500.0,0.00024657,2]
[336921908,1725243039703,-400.88635098,0.00024657,2]
[336921909,1725243039712,-500.0,0.00024657,2]
[336921910,1725243039722,-505.56234461,0.00024657,2]
[336921911,1725243039731,-500.0,0.00024657,2]
[336921912,1725243039740,-505.96564613,0.00024657,2]
[336921913,1725243039750,-500.0,0.00024657,2]
[336921914,1725243039759,-500.0,0.00024657,2]
[336921915,1725243039768,-394.55799849,0.00024657,2]
[336921916,1725243039779,-500.0,0.00024657,2]
[336921917,1725243039788,-500.0,0.00024657,2]
[336921918,1725243039798,-500.0,0.00024657,2]
[336921919,1725243039807,-723.83,0.00024657,2]
[336921920,1725243039817,-204.84754199,0.00024657,2]
[336921921,1725243039827,-500.0,0.00024657,2]
[336921922,1725243039836,-500.0,0.00024657,2]
[336921923,1725243039845,-500.0,0.00024657,2]
[336921924,1725243039857,-500.0,0.00024657,2]
[336921925,1725243039866,-500.0,0.00024657,2]
[336921926,1725243039876,-500.0,0.00024657,2]
[336921927,1725243039885,-500.0,0.00024657,2]
[336921928,1725243039895,-501.00550123,0.00024657,2]
[336921929,1725243039905,-500.0,0.00024657,2]
[336921930,1725243039914,-581.72851148,0.00024657,2]
[336921931,1725243039923,-509.71311402,0.00024657,2]
[336921932,1725243039933,-500.0,0.00024657,2]
[336921933,1725243039942,-500.0,0.00024657,2]
[336921934,1725243039951,-627.66,0.00024657,2]
[336921935,1725243039961,-238.29569263,0.00024657,2]
[336921936,1725243039970,-500.0,0.00024657,2]
[336921937,1725243039979,-500.0,0.00024657,2]
[336921938,1725243039989,-500.0,0.00024657,2]
[336921940,1725243039998,-833.08,0.00024657,2]
[336921941,1725243040008,-500.0,0.00024657,2]
[336921942,1725243040017,-500.0,0.00024657,2]
[336921943,1725243040026,-500.0,0.00024657,2]
[336921944,1725243040035,-500.0,0.00024657,2]
[336921945,1725243040045,-500.0,0.00024657,2]
[336921946,1725243040054,-500.0,0.00024657,2]
[336921947,1725243040064,-500.0,0.00024657,2]
[336921948,1725243040074,-500.0,0.00024657,2]
[336921949,1725243040084,-500.0,0.00024657,2]
[336921950,1725243040093,-500.0,0.00024657,2]
[336921951,1725243040103,-500.0,0.00024657,2]
[336921952,1725243040113,-500.0,0.00024657,2]
[336921953,1725243040125,-500.0,0.00024657,2]
[336921954,1725243040134,-500.0,0.00024657,2]
[336921955,1725243040143,-500.0,0.00024657,2]
[336921956,1725243040153,-502.656473,0.00024657,2]
[336921957,1725243040162,-627.41,0.00024657,2]
[336921958,1725243040173,-500.0,0.00024657,2]
[336921959,1725243040182,-500.0,0.00024657,2]
[336921960,1725243040191,-500.0,0.00024657,2]
[336921961,1725243040202,-407.48015764,0.00024657,2]
[336921962,1725243040212,-595.2,0.00024657,2]
[336921963,1725243040221,-500.0,0.00024657,2]
[336921964,1725243040231,-500.0,0.00024657,2]
[336921965,1725243040240,-500.0,0.00024657,2]
[336921966,1725243040250,-500.0,0.00024657,2]
[336921967,1725243040259,-500.0,0.00024657,2]
[336921968,1725243040269,-500.0,0.00024657,2]
[336921969,1725243040439,-269.54490414,0.00024657,2]
[336921970,1725243040450,-500.0,0.00024657,2]
[336921971,1725243040460,-500.0,0.00024657,2]
[336921972,1725243040470,-502.05100841,0.00024657,2]
[336921973,1725243040480,-500.0,0.00024657,2]
[336921974,1725243040489,-504.75777711,0.00024657,2]
[336921975,1725243040499,-500.0,0.00024657,2]
[336921976,1725243040509,-500.0,0.00024657,2]
[336921977,1725243040519,-500.0,0.00024657,2]
[336921978,1725243040529,-500.0,0.00024657,2]
[336921979,1725243040538,-500.0,0.00024657,2]
[336921980,1725243040548,-505.07883031,0.00024657,2]
[336921981,1725243040558,-500.0,0.00024657,2]
[336921982,1725243040568,-596.01,0.00024657,2]
[336921983,1725243040578,-500.0,0.00024657,2]
[336921984,1725243040587,-500.0,0.00024657,2]
[336921985,1725243040597,-200.0,0.00024657,2]
[336921986,1725243040610,-566.5,0.00024657,2]
[336921987,1725243040620,-500.0,0.00024657,2]
[336921988,1725243040630,-501.77420178,0.00024657,2]
[336921989,1725243040639,-500.0,0.00024657,2]
[336921990,1725243040649,-500.0,0.00024657,2]
[336921991,1725243040658,-500.0,0.00024657,2]
[336921992,1725243040668,-500.0,0.00024657,2]
[336921993,1725243040678,-249.29684256,0.00024657,2]
[336921994,1725243040687,-500.0,0.00024657,2]
[336921995,1725243040696,-500.0,0.00024657,2]
[336921996,1725243040705,-500.0,0.00024657,2]
[336921997,1725243040715,-500.0,0.00024657,2]
[336921998,1725243040724,-451.92411683,0.00024657,2]
[336921999,1725243040735,-500.0,0.00024657,2]
[336922000,1725243040744,-500.0,0.00024657,2]
[336922001,1725243040756,-500.0,0.00024657,2]
[336922002,1725243040766,-347.3069403,0.00024657,2]
[336922003,1725243040776,-500.0,0.00024657,2]
[336922004,1725243040785,-857.63,0.00024657,2]
[336922005,1725243040795,-500.0,0.00024657,2]
[336922006,1725243040804,-429.83534094,0.00024657,2]
[336922007,1725243040814,-500.0,0.00024657,2]
[336922008,1725243040823,-500.0,0.00024657,2]
[336922009,1725243040832,-500.0,0.00024657,2]
[336922010,1725243040841,-500.0,0.00024657,2]
[336922011,1725243040850,-500.0,0.00024657,2]
[336922012,1725243040872,-500.0,0.00024657,2]
[336922013,1725243040881,-500.0,0.00024657,2]
[336922014,1725243040891,-500.0,0.00024657,2]
[336922015,1725243040900,-444.9581942,0.00024657,2]
[336922016,1725243040909,-500.0,0.00024657,2]
[336922017,1725243040918,-500.0,0.00024657,2]
[336922018,1725243040927,-500.0,0.00024657,2]
[336922019,1725243040936,-500.0,0.00024657,2]
[336922020,1725243040946,-500.0,0.00024657,2]
[336922021,1725243040955,-500.0,0.00024657,2]
[336922022,1725243040965,-500.0,0.00024657,2]
[336922023,1725243040974,-500.0,0.00024657,2]
[336922024,1725243040984,-500.0,0.00024657,2]
[336922025,1725243040993,-500.0,0.00024657,2]
[336922026,1725243041003,-501.59116826,0.00024657,2]
[336922027,1725243041012,-500.0,0.00024657,2]
[336922028,1725243041021,-500.0,0.00024657,2]
[336922029,1725243041030,-500.0,0.00024657,2]
[336922030,1725243041040,-500.0,0.00024657,2]
[336922031,1725243041049,-500.0,0.00024657,2]
[336922032,1725243041059,-504.68,0.00024657,2]
[336922033,1725243041069,-500.0,0.00024657,2]
[336922034,1725243041078,-505.89865294,0.00024657,2]
[336922035,1725243041087,-500.0,0.00024657,2]
[336922036,1725243041096,-395.17663262,0.00024657,2]
[336922037,1725243041112,-500.0,0.00024657,2]
[336922038,1725243041124,-500.0,0.00024657,2]
[336922039,1725243041134,-500.0,0.00024657,2]
[336922040,1725243041143,-500.0,0.00024657,2]
[336922041,1725243041153,-712.27,0.00024657,2]
[336922042,1725243041163,-1156.69,0.00024657,2]
[336922043,1725243041173,-500.0,0.00024657,2]
[336922044,1725243041182,-500.0,0.00024657,2]
[336922045,1725243041191,-500.0,0.00024657,2]
[336922046,1725243041201,-500.0,0.00024657,2]
[336922047,1725243041211,-500.0,0.00024657,2]
[336922048,1725243041220,-500.0,0.00024657,2]
[336922049,1725243041229,-500.0,0.00024657,2]
[336922050,1725243041239,-502.87759677,0.00024657,2]
[336922051,1725243041248,-500.0,0.00024657,2]
[336922052,1725243041258,-500.0,0.00024657,2]
[336922053,1725243041267,-500.0,0.00024657,2]
[336922054,1725243041276,-500.0,0.00024657,2]
[336922055,1725243041286,-1446.63,0.00024657,2]
[336922056,1725243041296,-500.0,0.00024657,2]
[336922057,1725243041305,-1422.76,0.00024657,2]
[336922058,1725243041315,-500.0,0.00024657,2]
[336922059,1725243041324,-1422.76,0.00024657,2]
[336922060,1725243041334,-1422.76,0.00024657,2]
[336922061,1725243041343,-1422.76,0.00024657,2]
[336922062,1725243041353,-500.0,0.00024657,2]
[336922063,1725243041362,-1422.76,0.00024657,2]
[336922064,1725243041372,-1422.76,0.00024657,2]
[336922065,1725243041381,-1422.76,0.00024657,2]
[336922066,1725243041392,-1422.76,0.00024657,2]
[336922067,1725243041402,-1422.76,0.00024657,2]
[336922068,1725243041411,-500.0,0.00024657,2]
[336922069,1725243041421,-500.0,0.00024657,2]
[336922070,1725243041430,-500.0,0.00024657,2]
[336922071,1725243041440,-500.0,0.00024657,2]
[336922072,1725243041450,-443.52602092,0.00024657,2]
[336922073,1725243041460,-500.0,0.00024657,2]
[336922074,1725243041470,-500.0,0.00024657,2]
[336922075,1725243041479,-500.0,0.00024657,2]
[336922076,1725243041489,-2052.41,0.00024657,2]
[336922077,1725243041499,-500.0,0.00024657,2]
[336922078,1725243041509,-500.0,0.00024657,2]
[336922079,1725243041518,-806.64,0.00024657,2]
[336922080,1725243041528,-500.0,0.00024657,2]
[336922081,1725243041537,-500.0,0.00024657,2]
[336922082,1725243041547,-1113.72,0.00024657,2]
[336922083,1725243041557,-500.0,0.00024657,2]
[336922084,1725243041567,-500.0,0.00024657,2]
[336922085,1725243041577,-500.0,0.00024657,2]
[336922086,1725243041587,-500.0,0.00024657,2]
[336922087,1725243041597,-500.0,0.00024657,2]
[336922088,1725243041610,-2048.39,0.00024657,2]
[336922089,1725243041621,-500.0,0.00024657,2]
[336922090,1725243041631,-501.77048543,0.00024657,2]
[336922091,1725243041642,-500.0,0.00024657,2]
[336922092,1725243041652,-500.0,0.00024657,2]
[336922093,1725243041662,-244.59101297,0.00024657,2]
[336922094,1725243041671,-500.0,0.00024657,2]
[336922095,1725243041681,-500.0,0.00024657,2]
[336922096,1725243041691,-501.57384797,0.00024657,2]
[336922097,1725243041700,-500.0,0.00024657,2]
[336922098,1725243041710,-500.0,0.00024657,2]
[336922099,1725243041720,-505.84427358,0.00024657,2]
[336922100,1725243041729,-500.0,0.00024657,2]
[336922101,1725243041739,-2469.08,0.00024657,2]
[336922102,1725243041748,-500.0,0.00024657,2]
[336922103,1725243041758,-3036.16,0.00024657,2]
[336922104,1725243041767,-506.20146004,0.00024657,2]
[336922105,1725243041776,-500.0,0.00024657,2]
[336922106,1725243041785,-936.48,0.00024657,2]
[336922107,1725243041794,-1180.06,0.00024657,2]
[336922108,1725243041803,-813.81,0.00024657,2]
[336922109,1725243041812,-500.0,0.00024657,2]
[336922110,1725243041821,-504.95889577,0.00024657,2]
[336922111,1725243041830,-500.0,0.00024657,2]
[336922112,1725243041839,-500.0,0.00024657,2]
[336922113,1725243041848,-649.54,0.00024657,2]
[336922114,1725243041858,-500.0,0.00024657,2]
[336922115,1725243041868,-13431.53,0.00024657,2]
[336922116,1725243041878,-572.3146325,0.00024657,2]
[336922117,1725243041888,-500.0,0.00024657,2]
[336922118,1725243041897,-536.95610484,0.00024657,2]
[336922119,1725243041906,-500.0,0.00024657,2]
[336922120,1725243041915,-500.0,0.00024657,2]
[336922121,1725243041924,-500.0,0.00024657,2]
[336922122,1725243041934,-503.21,0.00024657,2]
[336922123,1725243041944,-501.7539955,0.00024657,2]
[336922124,1725243041954,-500.0,0.00024657,2]
[336922125,1725243041964,-500.0,0.00024657,2]
[336922126,1725243041974,-500.0,0.00024657,2]
[336922127,1725243041983,-500.0,0.00024657,2]
[336922128,1725243041993,-500.0,0.00024657,2]
[336922129,1725243042002,-578.63,0.00024657,2]
[336922130,1725243042012,-500.0,0.00024657,2]
[336922131,1725243042022,-590.6,0.00024657,2]
[336922132,1725243042031,-2907.46,0.00024657,2]
[336922133,1725243042041,-500.0,0.00024657,2]
[336922134,1725243042050,-668.06,0.00024657,2]
[336922135,1725243042060,-500.0,0.00024657,2]
[336922136,1725243042070,-500.0,0.00024657,2]
[336922137,1725243042080,-502.50593156,0.00024657,2]
[336922138,1725243042090,-500.0,0.00024657,2]
[336922139,1725243042100,-633.77385658,0.00024657,4]
[336922140,1725243042111,-385.87282955,0.00024657,2]
[336922141,1725243042121,-502.06547682,0.00024657,2]
[336922142,1725243042133,-500.0,0.00024657,2]
[336922143,1725243042143,-500.0,0.00024657,2]
[336922144,1725243042152,-637.36,0.00024657,2]
[336922145,1725243042163,-500.0,0.00024657,2]
[336922146,1725243042173,-1233.41,0.00024657,2]
[336922147,1725243042183,-500.0,0.00024657,2]
[336922148,1725243042192,-500.0,0.00024657,2]
[336922149,1725243042203,-500.0,0.00024657,2]
[336922150,1725243042213,-500.0,0.00024657,2]
[336922151,1725243042222,-500.0,0.00024657,2]
[336922152,1725243042232,-500.0,0.00024657,2]
[336922153,1725243042242,-500.0,0.00024657,2]
[336922154,1725243042252,-500.0,0.00024657,2]
[336922155,1725243042261,-500.0,0.00024657,2]
[336922156,1725243042271,-500.0,0.00024657,2]
[336922157,1725243042281,-500.0,0.00024657,2]
[336922158,1725243042292,-400.61213041,0.00024657,2]
[336922159,1725243042301,-504.30308324,0.00024657,2]
[336922160,1725243042310,-500.0,0.00024657,2]
[336922161,1725243042320,-1147.17,0.00024657,2]
[336922162,1725243042329,-500.0,0.00024657,2]
[336922163,1725243042338,-500.0,0.00024657,2]
[336922164,1725243042348,-500.0,0.00024657,2]
[336922165,1725243042360,-500.0,0.00024657,2]
[336922166,1725243042370,-500.0,0.00024657,2]
[336922167,1725243042379,-1549.93,0.00024657,2]
[336922168,1725243042389,-500.0,0.00024657,2]
[336922169,1725243042398,-500.0,0.00024657,2]
[336922170,1725243042408,-500.0,0.00024657,2]
[336922171,1725243042418,-500.0,0.00024657,2]
[336922172,1725243042428,-1457.23,0.00024657,2]
[336922173,1725243042438,-500.0,0.00024657,2]
[336922174,1725243042448,-194.29835824,0.00024657,2]
[336922175,1725243042458,-1528.89,0.00024657,2]
[336922176,1725243042467,-500.0,0.00024657,2]
[336922177,1725243042477,-500.0,0.00024657,2]
[336922178,1725243042487,-2108.71,0.00024657,2]
[336922179,1725243042497,-1754.81,0.00024657,2]
[336922180,1725243042507,-500.0,0.00024657,2]
[336922181,1725243042516,-2174.45,0.00024657,2]
[336922182,1725243042526,-1749.0,0.00024657,2]
[336922183,1725243042536,-308.68349162,0.00024657,2]
[336922184,1725243042546,-312.22824934,0.00024657,2]
[336922185,1725243042557,-500.0,0.00024657,2]
[336922186,1725243042567,-500.0,0.00024657,2]
[336922187,1725243042577,-556.81,0.00024657,2]
[336922188,1725243042586,-500.0,0.00024657,2]
[336922189,1725243042596,-514.23793636,0.00024657,2]
[336922190,1725243042607,-501.15176496,0.00024657,2]
[336922191,1725243042616,-500.0,0.00024657,2]
[336922192,1725243042626,-500.0,0.00024657,2]
[336922193,1725243042635,-2584.11,0.00024657,2]
[336922194,1725243042644,-500.0,0.00024657,2]
[336922195,1725243042653,-500.0,0.00024657,2]
[336922196,1725243042663,-500.0,0.00024657,2]
[336922197,1725243042672,-500.0,0.00024657,2]
[336922198,1725243042681,-500.0,0.00024657,2]
[336922199,1725243042690,-708.11,0.00024657,2]
[336922200,1725243042699,-1148.11,0.00024657,2]
[336922201,1725243042709,-500.0,0.00024657,2]
[336922202,1725243042719,-500.0,0.00024657,2]
[336922203,1725243042728,-500.0,0.00024657,2]
[336922204,1725243042737,-500.0,0.00024657,2]
[336922205,1725243042747,-5079.4,0.00024657,2]
[336922206,1725243042756,-628.72,0.00024657,2]
[336922207,1725243042765,-500.0,0.00024657,2]
[336922208,1725243042775,-661.39,0.00024657,2]
[336922209,1725243042785,-500.0,0.00024657,2]
[336922210,1725243042794,-1517.05,0.00024657,2]
[336922211,1725243042804,-500.0,0.00024657,2]
[336922212,1725243042813,-667.84,0.00024657,2]
[336922213,1725243042822,-504.35120959,0.00024657,2]
[336922214,1725243042832,-1051.32,0.00024657,2]
[336922215,1725243042841,-500.0,0.00024657,2]
[336922216,1725243042850,-1639.12,0.00024657,2]
[336922217,1725243042862,-500.0,0.00024657,2]
[336922218,1725243042871,-500.0,0.00024657,2]
[336922219,1725243042881,-500.0,0.00024657,2]
[336922220,1725243042891,-500.0,0.00024657,2]
[336922221,1725243042901,-1424.27,0.00024657,2]
[336922222,1725243042911,-500.0,0.00024657,2]
[336922223,1725243042920,-1556.89,0.00024657,2]
[336922224,1725243042929,-500.0,0.00024657,2]
[336922225,1725243042939,-200.41400638,0.00024657,2]
[336922226,1725243042948,-1124.52,0.00024657,2]
[336922227,1725243042957,-500.0,0.00024657,2]
[336922228,1725243042967,-585.40835845,0.00024657,2]
[336922229,1725243042976,-596.62,0.00024657,2]
[336922231,1725243042985,-678.74,0.00024657,2]
[336922233,1725243042995,-500.0,0.00024657,2]
[336922234,1725243043004,-1684.36,0.00024657,2]
[336922235,1725243043013,-500.0,0.00024657,2]
[336922236,1725243043024,-500.0,0.00024657,2]
[336922237,1725243043033,-500.0,0.00024657,2]
[336922238,1725243043043,-500.0,0.00024657,2]
[336922239,1725243043053,-1014.85311854,0.00024657,2]
[336922240,1725243043062,-500.0,0.00024657,2]
[336922241,1725243043072,-946.38,0.00024657,2]
[336922242,1725243043082,-500.0,0.00024657,2]
[336922243,1725243043091,-500.0,0.00024657,2]
[336922244,1725243043101,-500.0,0.00024657,2]
[336922245,1725243043112,-500.0,0.00024657,2]
[336922247,1725243043123,-500.0,0.00024657,2]
[336922249,1725243043134,-500.0,0.00024657,2]
[336922251,1725243043143,-500.0,0.00024657,2]
[336922253,1725243043153,-500.0,0.00024657,2]
[336922255,1725243043163,-500.0,0.00024657,2]
[336922257,1725243043172,-500.0,0.00024657,2]
[336922259,1725243043182,-573.46,0.00024657,2]
[336922261,1725243043191,-665.58,0.00024657,2]
[336922262,1725243043204,-500.0,0.00024657,2]
[336922263,1725243043214,-500.0,0.00024657,2]
[336922264,1725243043223,-1757.96,0.00024657,2]
[336922265,1725243043233,-645.89,0.00024657,2]
[336922266,1725243043243,-500.0,0.00024657,2]
[336922267,1725243043252,-500.0,0.00024657,2]
[336922271,1725243043386,-654.95,0.00024657,2]
[336922272,1725243043397,-787.46,0.00024657,2]
[336922273,1725243043406,-654.95,0.00024657,2]
[336922274,1725243043415,-654.95,0.00024657,2]
[336922275,1725243043425,-8090.14,0.00024657,2]
[336922276,1725243043434,-654.95,0.00024657,2]
[336922277,1725243043443,-654.95,0.00024657,2]
[336922278,1725243043452,-654.95,0.00024657,2]
[336922279,1725243043462,-417.37708968,0.00024657,2]
[336922280,1725243043471,-500.0,0.00024657,2]
[336922281,1725243043480,-1366.75,0.00024657,2]
[336922283,1725243043489,-3682.53,0.00024657,2]
[336922284,1725243043499,-1632.12,0.00024657,2]
[336922285,1725243043509,-500.0,0.00024657,2]
[336922286,1725243043518,-507.10310783,0.00024657,2]
[336922287,1725243043529,-1362.3,0.00024657,2]
[336922288,1725243043538,-542.55397573,0.00024657,2]
[336922289,1725243043548,-500.0,0.00024657,2]
[336922290,1725243043558,-509.72,0.00024657,2]
[336922291,1725243043569,-417.25845058,0.00024657,2]
[336922292,1725243043579,-500.0,0.00024657,2]
[336922293,1725243043588,-500.0,0.00024657,2]
[336922294,1725243043598,-500.0,0.00024657,2]
[336922295,1725243043608,-1427.89,0.00024657,2]
[336922296,1725243043618,-1376.1,0.00024657,2]
[336922297,1725243043627,-500.0,0.00024657,2]
[336922298,1725243043637,-500.0,0.00024657,2]
[336922299,1725243043647,-525.0,0.00024657,2]
[336922300,1725243043656,-1892.51,0.00024657,2]
[336922301,1725243043665,-500.0,0.00024657,2]
[336922302,1725243043675,-500.0,0.00024657,2]
[336922303,1725243043684,-500.0,0.00024657,2]
[336922304,1725243043693,-1320.34,0.00024657,2]
[336922305,1725243043703,-500.0,0.00024657,2]
[336922306,1725243043712,-500.0,0.00024657,2]
[336922307,1725243043721,-570.98,0.00024657,2]
[336922308,1725243043731,-500.0,0.00024657,2]
[336922309,1725243043740,-500.0,0.00024657,2]
[336922310,1725243043749,-2145.76,0.00024657,2]
[336922311,1725243043758,-503.24,0.00024657,2]
[336922312,1725243043768,-500.0,0.00024657,2]
[336922313,1725243043776,-1541.42,0.00024657,2]
[336922314,1725243043786,-3190.79,0.00024657,2]
[336922315,1725243043796,-1056.26,0.00024657,2]
[336922316,1725243043805,-1394.41,0.00024657,2]
[336922317,1725243043814,-500.0,0.00024657,2]